{"text_format":"3","workbook":"xlsx","n_sheets":14,"sheets":["NOTAS","Número entero","Decimal","Departamentos","Tabla de centros de coste","Presupuesto del centro de coste","Fecha","Hora","Longitud del texto","Presupuesto de recursos humanos","Productos","Comprobación de edad","Valores personalizados","Correo electrónico"],"not_rendered":{"images":22,"defined_names":3},"read":"whole","date_system":"1900"}

{"sheet":"NOTAS","index":0,"n_rows":27,"n_cols":7,"rows_kept":27}
[]
[null,"Ejemplos de validación de datos de Excel"]
[]
[null,"Las siguientes hojas de cálculo tienen varios ejemplos de validación de datos completados, como se mencionó en el siguiente artículo en Support.Office.com: "]
[]
[null,"Vea más en línea: Aplicar la validación de datos a celdas"]
[]
[null,"A continuación se muestra cada hoja de cálculo junto con el tipo de validación de datos que encontrará"]
[]
[null,"Hoja de cálculo","Tipo de validación de datos",{"$nulls":3},"• La validación de datos está limitada a las siguientes opciones:"]
[null,"Número entero","Limitar las entradas a números enteros"]
[null,"Decimal","Limitar las entradas a valores decimales (porcentajes)"]
[null,"Departamentos","Limitar selecciones a las opciones de lista"]
[null,"Tabla de centros de coste","Tabla de origen de lista de centros de coste"]
[null,"Presupuesto del centro de coste","Limitar selecciones a las opciones de lista de centros de coste"]
[null,"Fecha","Limitar las entradas a fechas dentro de un rango"]
[null,"Hora","Limitar las entradas dentro de un período de tiempo"]
[null,"Longitud del texto","Limitar las entradas a un determinado número de caracteres"]
[null,"Presupuesto de recursos humanos","Limitar las entradas a una cantidad máxima determinada"]
[null,"Productos","Requerir que las entradas cumplan determinadas directrices de texto"]
[null,"Comprobación de edad","Limitar las entradas por debajo de una cierta edad"]
[null,"Valores personalizados","Limitar las entradas solo a valores únicos (sin entradas repetidas)"]
[null,"Correo electrónico","Requerir que las entradas contengan el símbolo @"]
[]
[]
[null,"• Las celdas resaltadas como esta son para la entrada de datos:"]
[null,"Entrada aquí"]

{"sheet":"Número entero","index":1,"n_rows":24,"n_cols":8,"rows_kept":24}
["Validación de datos: limitar la entrada a un número entero"]
[{"$nulls":7},"• Limitar la entrada a valores entre 1 y 10"]
["Clasificación"]
[7]
{"$rows_empty":8}
["Número de dependientes","Deducciones"]
[2,4]
[]
[]
[]
[]
[{"$nulls":7},"• Usar una fórmula para limitar una entrada"]
[]
[]
[]
[]
["Vea más en línea: Aplicar la validación de datos a celdas"]

{"sheet":"Decimal","index":2,"n_rows":12,"n_cols":9,"rows_kept":12}
["Validación de datos: limitar la entrada a un decimal"]
[{"$nulls":8},"• Limitar la entrada a un valor decimal menor o igual a 3 %"]
["Salario actual","Aumento por méritos","Nuevo salario "]
[{"v":50000,"d":"50,000 €"},{"v":3,"d":"3.0 %"},{"$f":"((A4/100)*tbl_Decimal[Aumento por méritos])+tbl_Decimal[Salario actual]","v":{"v":51500,"d":"51,500 €"}}]
{"$rows_empty":7}
["Vea más en línea: Aplicar la validación de datos a celdas"]

{"sheet":"Departamentos","index":3,"n_rows":19,"n_cols":19,"rows_kept":19}
["Lista de validación de datos con una tabla para un origen"]
[{"$nulls":9},"• Usar el Administrador de nombres para crear y administrar los nombres definidos",{"$nulls":8},"• Crear su lista de validación de datos"]
["Departamento","Id. del departamento",null,"Departamento"]
["Contabilidad",401,null,"Ventas"]
["Nóminas",501]
["Recursos humanos",301]
["Ventas",201]
["Marketing",601]
["Operaciones",701]
["Ejecutivo",101]
[]
[]
["Vea más en línea: Aplicar la validación de datos a celdas"]
[]
[]
[]
[]
[]
[{"$nulls":18},"• Agregar mensajes de error y entrada"]

{"sheet":"Tabla de centros de coste","index":4,"n_rows":15,"n_cols":7,"rows_kept":15}
["Tabla de Excel que se puede usar para un origen de lista de validación de datos"]
[]
["Centro de coste","Categoría",{"$nulls":4},"• Usar el Administrador de nombres para crear y administrar los nombres definidos"]
[110,"Salario: sueldos regulares"]
[120,"Salario: sueldos por hora"]
[130,"Salario: comisión"]
[140,"Salario: bonificación"]
[150,"Salario: vacaciones"]
[160,"Salario: baja por enfermedad"]
[170,"Impuestos: federales"]
[180,"Impuestos: estatales"]
[190,"Impuestos: seguro estatal de incapacidad"]
[]
[]
["Vea más en línea: Aplicar la validación de datos a celdas"]

{"sheet":"Presupuesto del centro de coste","index":5,"n_rows":28,"n_cols":11,"rows_kept":28}
["Validación de datos: limitar una lista a determinadas entradas"]
[{"$nulls":10},"• Limitar los usuarios a entradas entre 100 y 999"]
["Centro de coste","Categoría","Previsión del año actual","Presupuesto del próximo año","Desviación"]
[110,{"$f":"VLOOKUP(tbl_Budget1[[#This Row],[Centro de coste]],tbl_CostCenters[],2,FALSE)","v":"Salario: sueldos regulares"},{"v":63578,"d":"63,578"},{"v":60000,"d":"60,000"},{"$f":"IF(tbl_Budget1[[#This Row],[Presupuesto del próximo año]]=\"\",\"\",tbl_Budget1[[#This Row],[Presupuesto del próximo año]]-tbl_Budget1[[#This Row],[Previsión del año actual]])","v":{"v":-3578,"d":"(3,578)"}}]
[120,{"$f":"VLOOKUP(tbl_Budget1[[#This Row],[Centro de coste]],tbl_CostCenters[],2,FALSE)","v":"Salario: sueldos por hora"},{"v":19721,"d":"19,721"},{"v":25000,"d":"25,000"},{"$f":"IF(tbl_Budget1[[#This Row],[Presupuesto del próximo año]]=\"\",\"\",tbl_Budget1[[#This Row],[Presupuesto del próximo año]]-tbl_Budget1[[#This Row],[Previsión del año actual]])","v":{"v":5279,"d":"5,279 "}}]
[130,{"$f":"VLOOKUP(tbl_Budget1[[#This Row],[Centro de coste]],tbl_CostCenters[],2,FALSE)","v":"Salario: comisión"},{"v":37500,"d":"37,500"},{"v":40000,"d":"40,000"},{"$f":"IF(tbl_Budget1[[#This Row],[Presupuesto del próximo año]]=\"\",\"\",tbl_Budget1[[#This Row],[Presupuesto del próximo año]]-tbl_Budget1[[#This Row],[Previsión del año actual]])","v":{"v":2500,"d":"2,500 "}}]
[140,{"$f":"VLOOKUP(tbl_Budget1[[#This Row],[Centro de coste]],tbl_CostCenters[],2,FALSE)","v":"Salario: bonificación"},{"v":12605,"d":"12,605"},null,{"$f":"IF(tbl_Budget1[[#This Row],[Presupuesto del próximo año]]=\"\",\"\",tbl_Budget1[[#This Row],[Presupuesto del próximo año]]-tbl_Budget1[[#This Row],[Previsión del año actual]])","v":""}]
[150,{"$f":"VLOOKUP(tbl_Budget1[[#This Row],[Centro de coste]],tbl_CostCenters[],2,FALSE)","v":"Salario: vacaciones"},{"v":28391,"d":"28,391"},{"v":30000,"d":"30,000"},{"$f":"IF(tbl_Budget1[[#This Row],[Presupuesto del próximo año]]=\"\",\"\",tbl_Budget1[[#This Row],[Presupuesto del próximo año]]-tbl_Budget1[[#This Row],[Previsión del año actual]])","v":{"v":1609,"d":"1,609 "}}]
[160,{"$f":"VLOOKUP(tbl_Budget1[[#This Row],[Centro de coste]],tbl_CostCenters[],2,FALSE)","v":"Salario: baja por enfermedad"},{"v":7303,"d":"7,303"},{"v":8500,"d":"8,500"},{"$f":"IF(tbl_Budget1[[#This Row],[Presupuesto del próximo año]]=\"\",\"\",tbl_Budget1[[#This Row],[Presupuesto del próximo año]]-tbl_Budget1[[#This Row],[Previsión del año actual]])","v":{"v":1197,"d":"1,197 "}}]
[170,{"$f":"VLOOKUP(tbl_Budget1[[#This Row],[Centro de coste]],tbl_CostCenters[],2,FALSE)","v":"Impuestos: federales"},{"v":44985,"d":"44,985"},{"v":50000,"d":"50,000"},{"$f":"IF(tbl_Budget1[[#This Row],[Presupuesto del próximo año]]=\"\",\"\",tbl_Budget1[[#This Row],[Presupuesto del próximo año]]-tbl_Budget1[[#This Row],[Previsión del año actual]])","v":{"v":5015,"d":"5,015 "}}]
[180,{"$f":"VLOOKUP(tbl_Budget1[[#This Row],[Centro de coste]],tbl_CostCenters[],2,FALSE)","v":"Impuestos: estatales"},{"v":20287,"d":"20,287"},{"v":21000,"d":"21,000"},{"$f":"IF(tbl_Budget1[[#This Row],[Presupuesto del próximo año]]=\"\",\"\",tbl_Budget1[[#This Row],[Presupuesto del próximo año]]-tbl_Budget1[[#This Row],[Previsión del año actual]])","v":{"v":713,"d":"713 "}}]
[190,{"$f":"VLOOKUP(tbl_Budget1[[#This Row],[Centro de coste]],tbl_CostCenters[],2,FALSE)","v":"Impuestos: seguro estatal de incapacidad"},{"v":1470,"d":"1,470"},{"v":1500,"d":"1,500"},{"$f":"IF(tbl_Budget1[[#This Row],[Presupuesto del próximo año]]=\"\",\"\",tbl_Budget1[[#This Row],[Presupuesto del próximo año]]-tbl_Budget1[[#This Row],[Previsión del año actual]])","v":{"v":30,"d":"30 "}}]
[]
["Validación de datos: usar la lista de centros de coste"]
[]
["Centro de coste","Categoría","Previsión del año actual","Presupuesto del próximo año","Desviación"]
[110,{"$f":"VLOOKUP(tbl_Budget2[[#This Row],[Centro de coste]],tbl_CostCenters[],2,FALSE)","v":"Salario: sueldos regulares"},{"v":63578,"d":"63,578"},{"v":60000,"d":"60,000"},{"$f":"IF(tbl_Budget2[[#This Row],[Presupuesto del próximo año]]=\"\",\"\",tbl_Budget2[[#This Row],[Presupuesto del próximo año]]-tbl_Budget2[[#This Row],[Previsión del año actual]])","v":{"v":-3578,"d":"(3,578)"}},{"$nulls":5},"• Usar la lista de centros de coste en su lugar"]
[120,{"$f":"VLOOKUP(tbl_Budget2[[#This Row],[Centro de coste]],tbl_CostCenters[],2,FALSE)","v":"Salario: sueldos por hora"},{"v":19721,"d":"19,721"},{"v":25000,"d":"25,000"},{"$f":"IF(tbl_Budget2[[#This Row],[Presupuesto del próximo año]]=\"\",\"\",tbl_Budget2[[#This Row],[Presupuesto del próximo año]]-tbl_Budget2[[#This Row],[Previsión del año actual]])","v":{"v":5279,"d":"5,279 "}}]
[130,{"$f":"VLOOKUP(tbl_Budget2[[#This Row],[Centro de coste]],tbl_CostCenters[],2,FALSE)","v":"Salario: comisión"},{"v":37500,"d":"37,500"},{"v":40000,"d":"40,000"},{"$f":"IF(tbl_Budget2[[#This Row],[Presupuesto del próximo año]]=\"\",\"\",tbl_Budget2[[#This Row],[Presupuesto del próximo año]]-tbl_Budget2[[#This Row],[Previsión del año actual]])","v":{"v":2500,"d":"2,500 "}}]
[140,{"$f":"VLOOKUP(tbl_Budget2[[#This Row],[Centro de coste]],tbl_CostCenters[],2,FALSE)","v":"Salario: bonificación"},{"v":12605,"d":"12,605"},null,{"$f":"IF(tbl_Budget2[[#This Row],[Presupuesto del próximo año]]=\"\",\"\",tbl_Budget2[[#This Row],[Presupuesto del próximo año]]-tbl_Budget2[[#This Row],[Previsión del año actual]])","v":""}]
[150,{"$f":"VLOOKUP(tbl_Budget2[[#This Row],[Centro de coste]],tbl_CostCenters[],2,FALSE)","v":"Salario: vacaciones"},{"v":28391,"d":"28,391"},{"v":30000,"d":"30,000"},{"$f":"IF(tbl_Budget2[[#This Row],[Presupuesto del próximo año]]=\"\",\"\",tbl_Budget2[[#This Row],[Presupuesto del próximo año]]-tbl_Budget2[[#This Row],[Previsión del año actual]])","v":{"v":1609,"d":"1,609 "}}]
[160,{"$f":"VLOOKUP(tbl_Budget2[[#This Row],[Centro de coste]],tbl_CostCenters[],2,FALSE)","v":"Salario: baja por enfermedad"},{"v":7303,"d":"7,303"},{"v":8500,"d":"8,500"},{"$f":"IF(tbl_Budget2[[#This Row],[Presupuesto del próximo año]]=\"\",\"\",tbl_Budget2[[#This Row],[Presupuesto del próximo año]]-tbl_Budget2[[#This Row],[Previsión del año actual]])","v":{"v":1197,"d":"1,197 "}}]
[170,{"$f":"VLOOKUP(tbl_Budget2[[#This Row],[Centro de coste]],tbl_CostCenters[],2,FALSE)","v":"Impuestos: federales"},{"v":44985,"d":"44,985"},{"v":50000,"d":"50,000"},{"$f":"IF(tbl_Budget2[[#This Row],[Presupuesto del próximo año]]=\"\",\"\",tbl_Budget2[[#This Row],[Presupuesto del próximo año]]-tbl_Budget2[[#This Row],[Previsión del año actual]])","v":{"v":5015,"d":"5,015 "}}]
[180,{"$f":"VLOOKUP(tbl_Budget2[[#This Row],[Centro de coste]],tbl_CostCenters[],2,FALSE)","v":"Impuestos: estatales"},{"v":20287,"d":"20,287"},{"v":21000,"d":"21,000"},{"$f":"IF(tbl_Budget2[[#This Row],[Presupuesto del próximo año]]=\"\",\"\",tbl_Budget2[[#This Row],[Presupuesto del próximo año]]-tbl_Budget2[[#This Row],[Previsión del año actual]])","v":{"v":713,"d":"713 "}}]
[190,{"$f":"VLOOKUP(tbl_Budget2[[#This Row],[Centro de coste]],tbl_CostCenters[],2,FALSE)","v":"Impuestos: seguro estatal de incapacidad"},{"v":1470,"d":"1,470"},{"v":1500,"d":"1,500"},{"$f":"IF(tbl_Budget2[[#This Row],[Presupuesto del próximo año]]=\"\",\"\",tbl_Budget2[[#This Row],[Presupuesto del próximo año]]-tbl_Budget2[[#This Row],[Previsión del año actual]])","v":{"v":30,"d":"30 "}}]
[]
[]
["Vea más en línea: Aplicar la validación de datos a celdas"]

{"sheet":"Fecha","index":6,"n_rows":20,"n_cols":7,"rows_kept":20}
["Validación de datos: limitar los usuarios solo a entradas de fecha"]
[{"$nulls":6},"• Usar la opción de fecha para limitar la fecha de inicio"]
["Solicitud de permiso"]
["Fecha de inicio","Fecha de finalización"]
[{"$f":"TODAY()+1","v":"2017-02-07"},{"$f":"tbl_Date[Fecha de inicio]+5","v":"2017-02-12"}]
{"$rows_empty":12}
[{"$nulls":6},"• Usar la opción de fecha para limitar la fecha de finalización"]
[]
["Vea más en línea: Aplicar la validación de datos a celdas"]

{"sheet":"Hora","index":7,"n_rows":19,"n_cols":9,"rows_kept":19}
["Validación de datos: limitar los usuarios solo a entradas de tiempo"]
[{"$nulls":8},"• Usar las opciones de hora de inicio y finalización para limitar las entradas de tiempo"]
["Hora de inicio","Hora de finalización","Hora de reunión"]
["08:00:00","17:00:00","09:30:00"]
{"$rows_empty":14}
["Vea más en línea: Aplicar la validación de datos a celdas"]

{"sheet":"Longitud del texto","index":8,"n_rows":29,"n_cols":6,"rows_kept":29}
["Validación de datos: limitar las entradas a una determinada longitud de texto"]
[{"$nulls":5},"• Configuración de la longitud de texto"]
["Escribir un texto de hasta 25 caracteres"]
["Escribir una breve descripción"]
{"$rows_empty":24}
["Vea más en línea: Aplicar la validación de datos a celdas"]

{"sheet":"Presupuesto de recursos humanos","index":9,"n_rows":18,"n_cols":11,"rows_kept":18}
["Validación de datos: limitar las entradas a un valor establecido"]
[]
[{"$nulls":10},"• Permitir una entrada de número entero limitada a un valor establecido"]
["Entrada de presupuesto -- Recursos humanos",null,null,"Presupuesto máximo",{"v":65000,"d":"65,000"}]
[]
["Centro de coste","Categoría","Previsión del año actual","Presupuesto del próximo año","Desviación"]
[110,{"$f":"VLOOKUP(tbl_BudgetMax[[#This Row],[Centro de coste]],tbl_CostCenters[],2,FALSE)","v":"Salario: sueldos regulares"},{"v":63578,"d":"63,578"},{"v":60000,"d":"60,000"},{"$f":"IF(tbl_BudgetMax[[#This Row],[Presupuesto del próximo año]]=\"\",\"\",tbl_BudgetMax[[#This Row],[Presupuesto del próximo año]]-tbl_BudgetMax[[#This Row],[Previsión del año actual]])","v":{"v":-3578,"d":"(3,578)"}}]
[120,{"$f":"VLOOKUP(tbl_BudgetMax[[#This Row],[Centro de coste]],tbl_CostCenters[],2,FALSE)","v":"Salario: sueldos por hora"},{"v":19721,"d":"19,721"},{"v":25000,"d":"25,000"},{"$f":"IF(tbl_BudgetMax[[#This Row],[Presupuesto del próximo año]]=\"\",\"\",tbl_BudgetMax[[#This Row],[Presupuesto del próximo año]]-tbl_BudgetMax[[#This Row],[Previsión del año actual]])","v":{"v":5279,"d":"5,279 "}}]
[130,{"$f":"VLOOKUP(tbl_BudgetMax[[#This Row],[Centro de coste]],tbl_CostCenters[],2,FALSE)","v":"Salario: comisión"},{"v":37500,"d":"37,500"},{"v":40000,"d":"40,000"},{"$f":"IF(tbl_BudgetMax[[#This Row],[Presupuesto del próximo año]]=\"\",\"\",tbl_BudgetMax[[#This Row],[Presupuesto del próximo año]]-tbl_BudgetMax[[#This Row],[Previsión del año actual]])","v":{"v":2500,"d":"2,500 "}}]
[140,{"$f":"VLOOKUP(tbl_BudgetMax[[#This Row],[Centro de coste]],tbl_CostCenters[],2,FALSE)","v":"Salario: bonificación"},{"v":12605,"d":"12,605"},{"v":25000,"d":"25,000"},{"$f":"IF(tbl_BudgetMax[[#This Row],[Presupuesto del próximo año]]=\"\",\"\",tbl_BudgetMax[[#This Row],[Presupuesto del próximo año]]-tbl_BudgetMax[[#This Row],[Previsión del año actual]])","v":{"v":12395,"d":"12,395 "}}]
[150,{"$f":"VLOOKUP(tbl_BudgetMax[[#This Row],[Centro de coste]],tbl_CostCenters[],2,FALSE)","v":"Salario: vacaciones"},{"v":28391,"d":"28,391"},{"v":30000,"d":"30,000"},{"$f":"IF(tbl_BudgetMax[[#This Row],[Presupuesto del próximo año]]=\"\",\"\",tbl_BudgetMax[[#This Row],[Presupuesto del próximo año]]-tbl_BudgetMax[[#This Row],[Previsión del año actual]])","v":{"v":1609,"d":"1,609 "}}]
[160,{"$f":"VLOOKUP(tbl_BudgetMax[[#This Row],[Centro de coste]],tbl_CostCenters[],2,FALSE)","v":"Salario: baja por enfermedad"},{"v":7303,"d":"7,303"},{"v":8500,"d":"8,500"},{"$f":"IF(tbl_BudgetMax[[#This Row],[Presupuesto del próximo año]]=\"\",\"\",tbl_BudgetMax[[#This Row],[Presupuesto del próximo año]]-tbl_BudgetMax[[#This Row],[Previsión del año actual]])","v":{"v":1197,"d":"1,197 "}}]
[170,{"$f":"VLOOKUP(tbl_BudgetMax[[#This Row],[Centro de coste]],tbl_CostCenters[],2,FALSE)","v":"Impuestos: federales"},{"v":44985,"d":"44,985"},{"v":50000,"d":"50,000"},{"$f":"IF(tbl_BudgetMax[[#This Row],[Presupuesto del próximo año]]=\"\",\"\",tbl_BudgetMax[[#This Row],[Presupuesto del próximo año]]-tbl_BudgetMax[[#This Row],[Previsión del año actual]])","v":{"v":5015,"d":"5,015 "}}]
[180,{"$f":"VLOOKUP(tbl_BudgetMax[[#This Row],[Centro de coste]],tbl_CostCenters[],2,FALSE)","v":"Impuestos: estatales"},{"v":20287,"d":"20,287"},{"v":21000,"d":"21,000"},{"$f":"IF(tbl_BudgetMax[[#This Row],[Presupuesto del próximo año]]=\"\",\"\",tbl_BudgetMax[[#This Row],[Presupuesto del próximo año]]-tbl_BudgetMax[[#This Row],[Previsión del año actual]])","v":{"v":713,"d":"713 "}}]
[190,{"$f":"VLOOKUP(tbl_BudgetMax[[#This Row],[Centro de coste]],tbl_CostCenters[],2,FALSE)","v":"Impuestos: seguro estatal de incapacidad"},{"v":1470,"d":"1,470"},{"v":1500,"d":"1,500"},{"$f":"IF(tbl_BudgetMax[[#This Row],[Presupuesto del próximo año]]=\"\",\"\",tbl_BudgetMax[[#This Row],[Presupuesto del próximo año]]-tbl_BudgetMax[[#This Row],[Previsión del año actual]])","v":{"v":30,"d":"30 "}}]
[]
[]
["Vea más en línea: Aplicar la validación de datos a celdas"]

{"sheet":"Productos","index":10,"n_rows":53,"n_cols":10,"rows_kept":53}
["Validación de datos: opción personalizada con una fórmula para restringir una entrada de texto"]
[{"$nulls":9},"• Opción personalizada para la entrada del Id. del producto"]
["Id. del producto","Nombre del producto"]
["ID-1234567","Widget"]
["ID-29876534","Válvula Fetzer"]
{"$rows_empty":13}
["Validación de datos: opción personalizada con una fórmula para asegurar una entrada de texto"]
[{"$nulls":9},"• Opción personalizada para garantizar una entrada de texto (exclusivamente no numérico)"]
["Id. del producto","Nombre del producto"]
[{"$f":"A4","v":"ID-1234567"},"Widget"]
[{"$f":"A5","v":"ID-29876534"},"Válvula Fetzer"]
{"$rows_empty":13}
["Formato de número personalizado",{"$nulls":8},"• Formato de número personalizado"]
[]
["Id. del producto","Nombre del producto"]
[{"v":1234567,"d":"ID-1234567"},"Widget"]
[{"v":29876534,"d":"ID-29876534"},"Válvula Fetzer"]
{"$rows_empty":11}
["Vea más en línea: Aplicar la validación de datos a celdas"]

{"sheet":"Comprobación de edad","index":11,"n_rows":21,"n_cols":10,"rows_kept":21,"merged":[[2,0,2,1]]}
["Validación de datos: Formato personalizado para verificar el requisito de edad"]
[{"$nulls":9},"• Opción personalizada para comprobar el requisito de edad"]
["¿El participante cumple el requisito de edad?"]
["Límite de edad:",18]
["La fecha de nacimiento debe ser anterior a la siguiente:",{"$f":"TODAY()-(365*B4)","v":"1999-02-11"}]
["Fecha de nacimiento:","1996-01-15"]
["Edad actual:",{"$f":"(TODAY()-B6)/365","v":{"v":21.076712328767123,"d":"21.08"}}]
{"$rows_empty":13}
["Vea más en línea: Aplicar la validación de datos a celdas"]

{"sheet":"Valores personalizados","index":12,"n_rows":22,"n_cols":8,"rows_kept":22}
["Validación de datos: opción personalizada para garantizar entradas únicas exclusivamente"]
[]
["Lista única",{"$nulls":6},"• Opción personalizada para garantizar entradas únicas exclusivamente"]
[1]
[2]
[3]
[4]
[5]
[6]
[7]
[8]
[9]
{"$rows_empty":9}
["Vea más en línea: Aplicar la validación de datos a celdas"]

{"sheet":"Correo electrónico","index":13,"n_rows":22,"n_cols":7,"rows_kept":22}
["Validación de datos: opción personalizada para la validación de direcciones de correo electrónico"]
[]
["Dirección de correo electrónico",{"$nulls":5},"• Opción personalizada para la validación de direcciones de correo electrónico"]
["pedro@msn.com"]
{"$rows_empty":17}
["Vea más en línea: Aplicar la validación de datos a celdas"]